Workbook

Sheet Bruk av regnearket
A1: BRUKSANVISNING
A4: 1 | B4: Finn frem resultatlister for løpet som skal legges inn, totalresultater og strekktider som viser strekktiden på beste klatrer og beste spurter.
A5: 2 | B5: Ranger løperne på spurt og klatring
A6: 3 | B6: Klikk på arkfane for riktig klasse og legg inn løpere (hvis de har løpt tidligere løp trenger man ikke registrere disse på nytt).
A7: 4 | B7: Legg inn riktig poengsum etter rangering ihht MOT.TV reglene på vinner (Gul), Klatrer (Blå) og Sprinter (Grønn).
B8: Poengsummer som skal brukers rangert fra nr 1 og utover er: 100, 80, 60, 50, 45, 40, 35, 30, 26, 22, 20, 20, 20, 20 osv
A9: 5 | B9: Trykk på Sorterknappen
A10: 6 | B10: Gå til neste klasse og gjenta pkt 1-5 osv
A11: 7 | B11: Det er lagt opp til 2 sprint- og 2 klatrestrekk i finalen, dvs at det deles ut dobbelt opp med poeng.
A12: 8 | B12: Arket markerer beste løper i kategoriene men tar ikke hensyn til løperens alder (hvis løpere står helt likt).
A13: 9 | B13: Arket regner fortløpende ut starttider for jaktstarten i finalen
A14: 10 | B14: Hvis verdiene i starttidkolonnen blir merkelige under utfylling, trykk "Sorter" knappen

Sheet D1314
I2: Sorter
M4: 161
C5: Gul ledertrøye | K5: Blå klatretrøye | U5: Grønn spurttrøye
A6: Navn | B6: Klubb | C6: Løp 1 | D6: Løp 2 | E6: Løp 3 | F6: Løp 4 | G6: Løp 5 | H6: Sammenlagt Gul | I6: Rangering | J6: Starttid Finale | K6: Løp 1 | L6: Løp 2 | M6: Løp 3 | N6: Løp 4 | O6: Løp 5 | P6: Sammenlagt Blå | Q6: Finale (1) | R6: Finale (2) | S6: Sluttsum | T6: Rangering | U6: Løp 1 | V6: Løp 2 | W6: Løp 3 | X6: Løp 4 | Y6: Løp 5 | Z6: Sammenlagt Grønn | AA6: Finale (1) | AB6: Finale (M) | AC6: Sluttsum | AD6: Rangering
A7: Elise Ausen | B7: Porsgrunn OL | C7: 100 | D7: 100 | F7: 80 | G7: 160 | H7: =SUM(C7:G7) -> 440 | I7: =IF(H7=0,0,RANK(H7,$H$7:$H$39)) -> 2 | J7: =IF(COUNTA(C7:G7)>=2,((H$7-H7)*2/(24*3600)),(600/(24*3600))) -> 00:00:00 | K7: 80 | L7: 100 | N7: 60 | P7: =IF(COUNT(K7:O7)>2,LARGE(K7:O7,1)+LARGE(K7:O7,2)+LARGE(K7:O7,3),SUM(K7:O7)) -> 240 | Q7: 120 | S7: =P7+Q7+R7 -> 360 | T7: =IF(S7=0,0,RANK(S7,$S$7:$S$39)) -> 2 | U7: 60 | V7: 80 | X7: 50 | Z7: =IF(COUNT(U7:Y7)>2,LARGE(U7:Y7,1)+LARGE(U7:Y7,2)+LARGE(U7:Y7,3),SUM(U7:Y7)) -> 190 | AA7: 120 | AC7: =Z7+AA7+AB7 -> 310 | AD7: =IF(AC7=0,0,RANK(AC7,$AC$7:$AC$39)) -> 3
A8: Hanna Johansson | B8: Hedrum OL | C8: 80 | D8: 80 | F8: 100 | G8: 200 | H8: =SUM(C8:G8) -> 460 | I8: 1 | J8: -0.000462962963 | K8: 100 | L8: 60 | N8: 100 | P8: 260 | Q8: 160 | S8: 420 | T8: 1 | U8: 100 | V8: 45 | X8: 45 | Z8: 190 | AA8: 100 | AC8: 290 | AD8: 4
A9: Maria G. Mehammer | B9: Porsgrunn OL | C9: 60 | H9: 60 | I9: 8 | J9: 00:10:00 | K9: 50 | P9: 50 | S9: 50 | T9: 8 | U9: 40 | Z9: 40 | AC9: 40 | AD9: 9
A10: Mina Schjerven | B10: Lardal OK | C10: 50 | H10: 50 | I10: 9 | J10: 00:10:00 | K10: 40 | P10: 40 | S10: 40 | T10: 10 | U10: 45 | Z10: 45 | AC10: 45 | AD10: 8
A11: Ida Sofie Hjortland | B11: Larvik OK | C11: 45 | D11: 50 | E11: 60 | G11: 120 | H11: 275 | I11: 3 | J11: 00:05:30 | K11: 60 | L11: 50 | M11: 100 | P11: 210 | Q11: 100 | S11: 310 | T11: 4 | U11: 100 | V11: 50 | W11: 80 | Z11: 230 | AA11: 160 | AC11: 390 | AD11: 2
A12: Elise Støren | B12: Bø OL | C12: 40 | F12: 45 | H12: 85 | I12: 6 | J12: 00:11:50 | K12: 45 | N12: 50 | P12: 95 | S12: 95 | T12: 6 | U12: 50 | X12: 35 | Z12: 85 | AC12: 85 | AD12: 7
A13: Malene Nysæter | B13: Skien OK | D13: 60 | E13: 100 | F13: 50 | H13: 210 | I13: 4 | J13: 00:07:40 | L13: 80 | M13: 60 | N13: 80 | P13: 220 | S13: 220 | T13: 5 | V13: 60 | W13: 60 | X13: 60 | Z13: 180 | AC13: 180 | AD13: 5
A14: Bethina Staulen Fredin | B14: Skien OK | D14: 45 | E14: 80 | F14: 60 | H14: 185 | I14: 5 | J14: 00:08:30 | L14: 45 | M14: 80 | N14: 35 | P14: 160 | Q14: 200 | S14: 360 | T14: 2 | V14: 100 | W14: 100 | X14: 100 | Z14: 300 | AA14: 200 | AC14: 500 | AD14: 1
A15: Ragnhild Marie Kristensen | B15: Stokke IL | D15: 40 | F15: 35 | H15: 75 | I15: 7 | J15: 00:12:10 | L15: 40 | N15: 40 | P15: 80 | S15: 80 | T15: 7 | V15: 40 | X15: 80 | Z15: 120 | AC15: 120 | AD15: 6
A16: Frida Daler | B16: Stokke IL | F16: 40 | H16: 40 | I16: 10 | J16: 00:10:00 | N16: 45 | P16: 45 | S16: 45 | T16: 9 | X16: 30 | Z16: 30 | AC16: 30 | AD16: 11
A17: Ylva Aasestad | B17: Hedrum OL | F17: 30 | H17: 30 | I17: 11 | J17: 00:10:00 | N17: 30 | P17: 30 | S17: 30 | T17: 11 | X17: 40 | Z17: 40 | AC17: 40 | AD17: 9
H18: 0 | I18: =IF(H18=0,0,RANK(H18,$H$7:$H$39)) -> 0 | J18: =IF(COUNTA(C18:G18)>=2,((H$7-H18)*2/(24*3600)),(600/(24*3600))) -> 00:10:00 | P18: =IF(COUNT(K18:O18)>2,LARGE(K18:O18,1)+LARGE(K18:O18,2)+LARGE(K18:O18,3),SUM(K18:O18)) -> 0 | S18: =P18+Q18+R18 -> 0 | T18: =IF(S18=0,0,RANK(S18,$S$7:$S$39)) -> 0 | Z18: =IF(COUNT(U18:Y18)>2,LARGE(U18:Y18,1)+LARGE(U18:Y18,2)+LARGE(U18:Y18,3),SUM(U18:Y18)) -> 0 | AC18: =Z18+AA18+AB18 -> 0 | AD18: =IF(AC18=0,0,RANK(AC18,$AC$7:$AC$39)) -> 0
H19: 0 | I19: 0 | J19: 00:10:00 | P19: 0 | S19: 0 | T19: 0 | Z19: 0 | AC19: 0 | AD19: 0
H20: 0 | I20: 0 | J20: 00:10:00 | P20: 0 | S20: 0 | T20: 0 | Z20: 0 | AC20: 0 | AD20: 0
H21: 0 | I21: 0 | J21: 00:10:00 | P21: 0 | S21: 0 | T21: 0 | Z21: 0 | AC21: 0 | AD21: 0
H22: 0 | I22: =IF(H22=0,0,RANK(H22,$H$7:$H$39)) -> 0 | J22: =IF(COUNTA(C22:F22)>=2,((H$7-H22)*2/(24*3600)),(600/(24*3600))) -> 00:10:00 | P22: =IF(COUNT(K22:N22)=4,SUM(K22:N22)-MIN(K22:N22),SUM(K22:N22)) -> 0 | S22: =P22+Q22+R22 -> 0 | T22: =IF(S22=0,0,RANK(S22,$S$7:$S$39)) -> 0 | Z22: =IF(COUNT(U22:X22)=4,SUM(U22:X22)-MIN(U22:X22),SUM(U22:X22)) -> 0 | AC22: =Z22+AA22+AB22 -> 0 | AD22: =IF(AC22=0,0,RANK(AC22,$AC$7:$AC$39)) -> 0
H23: 0 | I23: 0 | J23: 00:10:00 | P23: 0 | S23: 0 | T23: 0 | Z23: 0 | AC23: 0 | AD23: 0
H24: 0 | I24: 0 | J24: 00:10:00 | P24: 0 | S24: 0 | T24: 0 | Z24: 0 | AC24: 0 | AD24: 0
H25: 0 | I25: 0 | J25: 00:10:00 | P25: 0 | S25: 0 | T25: 0 | Z25: 0 | AC25: 0 | AD25: 0
H26: 0 | I26: 0 | J26: 00:10:00 | P26: 0 | S26: 0 | T26: 0 | Z26: 0 | AC26: 0 | AD26: 0
H27: 0 | I27: 0 | J27: 00:10:00 | P27: 0 | S27: 0 | T27: 0 | Z27: 0 | AC27: 0 | AD27: 0
H28: 0 | I28: 0 | J28: 00:10:00 | P28: 0 | S28: 0 | T28: 0 | Z28: 0 | AC28: 0 | AD28: 0
H29: 0 | I29: 0 | J29: 00:10:00 | P29: 0 | S29: 0 | T29: 0 | Z29: 0 | AC29: 0 | AD29: 0
H30: 0 | I30: 0 | J30: 00:10:00 | P30: 0 | S30: 0 | T30: 0 | Z30: 0 | AC30: 0 | AD30: 0
H31: 0 | I31: 0 | J31: 00:10:00 | P31: 0 | S31: 0 | T31: 0 | Z31: 0 | AC31: 0 | AD31: 0
H32: 0 | I32: 0 | J32: 00:10:00 | P32: 0 | S32: 0 | T32: 0 | Z32: 0 | AC32: 0 | AD32: 0
H33: 0 | I33: 0 | J33: 00:10:00 | P33: 0 | S33: 0 | T33: 0 | Z33: 0 | AC33: 0 | AD33: 0
H34: 0 | I34: 0 | J34: 00:10:00 | P34: 0 | S34: 0 | T34: 0 | Z34: 0 | AC34: 0 | AD34: 0
H35: 0 | I35: 0 | J35: 00:10:00 | P35: 0 | S35: 0 | T35: 0 | Z35: 0 | AC35: 0 | AD35: 0
H36: 0 | I36: 0 | J36: 00:10:00 | P36: 0 | S36: 0 | T36: 0 | Z36: 0 | AC36: 0 | AD36: 0
H37: 0 | I37: 0 | J37: 00:10:00 | P37: 0 | S37: 0 | T37: 0 | Z37: 0 | AC37: 0 | AD37: 0
H38: 0 | I38: 0 | J38: 00:10:00 | P38: 0 | S38: 0 | T38: 0 | Z38: 0 | AC38: 0 | AD38: 0
H39: 0 | I39: 0 | J39: 00:10:00 | S39: 0 | T39: 0 | Z39: 0 | AC39: 0 | AD39: 0
H40: 0 | I40: =IF(H40=0,0,RANK(H40,$H$7:$H$20)) -> 0
H41: 0 | I41: 0
H42: 0 | I42: 0
H43: 0 | I43: 0
H44: 0 | I44: 0
H45: 0 | I45: 0
H46: 0 | I46: 0

Sheet H1314
C5: Gul ledertrøye | K5: Blå klatretrøye | U5: Grønn spurttrøye
A6: Navn | B6: Klubb | C6: Løp 1 | D6: Løp 2 | E6: Løp 3 | F6: Løp 4 | G6: Løp 5 | H6: Sammenlagt Gul | I6: Rangering | J6: Starttid Finale | K6: Løp 1 | L6: Løp 2 | M6: Løp 3 | N6: Løp 4 | O6: Løp 5 | P6: Sammenlagt Blå | Q6: Finale (1) | R6: Finale (2) | S6: Sluttsum | T6: Rangering | U6: Løp 1 | V6: Løp 2 | W6: Løp 3 | X6: Løp 4 | Y6: Løp 5 | Z6: Sammenlagt Grønn | AA6: Finale (1) | AB6: Finale (M) | AC6: Sluttsum | AD6: Rangering
A7: Cornelius Bjørk | B7: Sandefjord OK | C7: 100 | D7: 100 | E7: 100 | G7: 160 | H7: =SUM(C7:G7) -> 460 | I7: =IF(H7=0,0,RANK(H7,$H$7:$H$39)) -> 1 | J7: =IF(COUNTA(C7:G7)>=2,((H$7-H7)*2/(24*3600)),(600/(24*3600))) -> 00:00:00 | K7: 50 | M7: 80 | N7: 100 | P7: =IF(COUNT(K7:O7)>2,LARGE(K7:O7,1)+LARGE(K7:O7,2)+LARGE(K7:O7,3),SUM(K7:O7)) -> 230 | Q7: 160 | S7: =P7+Q7+R7 -> 390 | T7: =IF(S7=0,0,RANK(S7,$S$7:$S$39)) -> 2 | U7: 45 | W7: 60 | X7: 30 | Z7: =IF(COUNT(U7:Y7)>2,LARGE(U7:Y7,1)+LARGE(U7:Y7,2)+LARGE(U7:Y7,3),SUM(U7:Y7)) -> 135 | AA7: 160 | AC7: =Z7+AA7+AB7 -> 295 | AD7: =IF(AC7=0,0,RANK(AC7,$AC$7:$AC$39)) -> 4
A8: Viljan van Raaij | B8: Hedrum OL | C8: 80 | D8: 80 | F8: 100 | G8: 90 | H8: =SUM(C8:G8) -> 350 | I8: 2 | J8: 00:03:40 | K8: 35 | M8: 40 | N8: 60 | P8: 135 | Q8: 80 | S8: 215 | T8: 4 | U8: 30 | W8: 60 | X8: 50 | Z8: 140 | AA8: 80 | AC8: 220 | AD8: 6
A9: Even Gravningen | B9: Stokke IL | C9: 60 | D9: 50 | E9: 10 | G9: 200 | H9: 320 | I9: 3 | J9: 00:04:40 | K9: 100 | L9: 20 | P9: 120 | Q9: 160 | S9: 280 | T9: 3 | U9: 50 | V9: 60 | Z9: 110 | AA9: 200 | AC9: 310 | AD9: 2
A10: Jakob Hjelseth | B10: OTO | C10: 50 | D10: 60 | E10: 50 | H10: 160 | I10: 7 | J10: 00:10:00 | K10: 60 | L10: 50 | M10: 35 | P10: 145 | S10: 145 | T10: 7 | U10: 45 | V10: 50 | W10: 60 | Z10: 155 | AC10: 155 | AD10: 9
A11: Audun Brevik | B11: Stokke IL | C11: 45 | H11: 45 | I11: 14 | J11: 00:10:00 | K11: 45 | P11: 45 | S11: 45 | T11: 15 | U11: 45 | Z11: 45 | AC11: 45 | AD11: 15
A12: Åsmund Slokvik | B12: Notodden OL | C12: 40 | E12: 80 | F12: 50 | G12: 120 | H12: 290 | I12: 4 | J12: 00:05:40 | L12: 80 | M12: 100 | N12: 80 | P12: 260 | Q12: 200 | S12: 460 | T12: 1 | U12: 80 | W12: 80 | X12: 80 | Z12: 240 | AA12: 120 | AC12: 360 | AD12: 1
A13: Morten Krona Haflan | B13: OTO | C13: 35 | D13: 10 | H13: 45 | I13: 14 | J13: 00:13:50 | K13: 80 | L13: 45 | P13: 125 | S13: 125 | T13: 10 | U13: 100 | V13: 80 | Z13: 180 | AC13: 180 | AD13: 8
A14: Henrik R Holt | B14: Hedrum OL | C14: 30 | D14: 22 | F14: 80 | G14: 80 | H14: 212 | I14: 5 | J14: 00:08:16 | L14: 100 | M14: 45 | N14: 50 | P14: 26 | Q14: 70 | S14: 96 | T14: 12 | U14: 80 | V14: 45 | X14: 50 | Z14: 175 | AA14: 90 | AC14: 265 | AD14: 5
A15: Håvard Skriubakken | B15: Porsgrunn OL | C15: 26 | D15: 26 | H15: 52 | I15: 13 | J15: 00:13:36 | K15: 26 | L15: 26 | P15: =IF(COUNT(K15:O15)>2,LARGE(K15:O15,1)+LARGE(K15:O15,2)+LARGE(K15:O15,3),SUM(K15:O15)) -> 52 | S15: 52 | T15: 14 | U15: 30 | V15: 20 | Z15: 50 | AC15: 50 | AD15: 14
A16: Per Anders Eckdahl | B16: OK Horten | C16: 22 | E16: 35 | F16: 10 | G16: 20 | H16: 87 | I16: 11 | J16: 00:12:26 | K16: 30 | M16: 26 | N16: 45 | P16: 101 | Q16: 60 | S16: 161 | T16: 6 | U16: 22 | W16: 30 | X16: 50 | Z16: 102 | AA16: 20 | AC16: 122 | AD16: 12
A17: Iver Ringheim | B17: Larvik OK | D17: 45 | E17: 60 | F17: 40 | H17: 145 | I17: 8 | J17: 00:10:30 | L17: 30 | M17: 80 | N17: 35 | P17: 145 | S17: 145 | T17: 7 | V17: 35 | W17: 26 | X17: 80 | Z17: 141 | AC17: 141 | AD17: 10
A18: Halvard Kornmo | B18: Porsgrunn OL | D18: 40 | E18: 10 | G18: 70 | H18: 120 | I18: 9 | J18: 00:11:20 | L18: 40 | P18: 40 | Q18: 90 | S18: 130 | T18: 9 | V18: 20 | W18: 10 | Z18: 30 | AA18: 60 | AC18: 90 | AD18: 13
A19: Jonas Eikås | B19: Sandefjord OK | D19: 30 | E19: 40 | G19: 100 | H19: 170 | I19: 6 | J19: 00:09:40 | L19: 20 | M19: 50 | P19: 70 | Q19: 100 | S19: 170 | T19: 5 | V19: 22 | W19: 40 | Z19: 62 | AA19: 70 | AC19: 132 | AD19: 11
A20: Snorre Slokvik | B20: Notodden OL | D20: 20 | E20: 10 | F20: 45 | H20: 75 | I20: 12 | J20: 00:12:50 | L20: 60 | M20: 30 | P20: 90 | S20: 90 | T20: 13 | V20: 100 | W20: 100 | X20: 100 | Z20: 300 | AC20: 300 | AD20: 3
A21: Kristoffer Fjære | B21: Hedrum OL | D21: 20 | F21: 35 | G21: 60 | H21: 115 | I21: 10 | J21: 00:11:30 | L21: 22 | N21: 40 | P21: 62 | Q21: 52 | S21: 114 | T21: 11 | V21: 40 | X21: 35 | Z21: 75 | AA21: 120 | AC21: 195 | AD21: 7
A22: Jakob Schia Løe | B22: Notodden OL | E22: 10 | H22: 10 | I22: =IF(H22=0,0,RANK(H22,$H$7:$H$39)) -> 16 | J22: =IF(COUNTA(C22:G22)>=2,((H$7-H22)*2/(24*3600)),(600/(24*3600))) -> 00:10:00 | P22: =IF(COUNT(K22:O22)>2,LARGE(K22:O22,1)+LARGE(K22:O22,2)+LARGE(K22:O22,3),SUM(K22:O22)) -> 0 | S22: =P22+Q22+R22 -> 0 | T22: =IF(S22=0,0,RANK(S22,$S$7:$S$39)) -> 0 | Z22: =IF(COUNT(U22:Y22)>2,LARGE(U22:Y22,1)+LARGE(U22:Y22,2)+LARGE(U22:Y22,3),SUM(U22:Y22)) -> 0 | AC22: =Z22+AA22+AB22 -> 0 | AD22: =IF(AC22=0,0,RANK(AC22,$AC$7:$AC$39)) -> 0
H23: 0 | I23: 0 | J23: 00:10:00 | P23: 0 | S23: 0 | T23: 0 | Z23: 0 | AC23: 0 | AD23: 0
H24: 0 | I24: 0 | J24: 00:10:00 | P24: 0 | S24: 0 | T24: 0 | Z24: 0 | AC24: 0 | AD24: 0
H25: 0 | I25: 0 | J25: 00:10:00 | P25: 0 | S25: 0 | T25: 0 | Z25: 0 | AC25: 0 | AD25: 0
H26: 0 | I26: 0 | J26: 00:10:00 | P26: 0 | S26: 0 | T26: 0 | Z26: 0 | AC26: 0 | AD26: 0
H27: 0 | I27: 0 | J27: 00:10:00 | P27: 0 | S27: 0 | T27: 0 | Z27: 0 | AC27: 0 | AD27: 0
H28: 0 | I28: 0 | J28: 00:10:00 | P28: 0 | S28: 0 | T28: 0 | Z28: 0 | AC28: 0 | AD28: 0
H29: 0 | I29: =IF(H29=0,0,RANK(H29,$H$7:$H$39)) -> 0 | J29: =IF(COUNTA(C29:F29)>=2,((H$7-H29)*2/(24*3600)),(600/(24*3600))) -> 00:10:00 | P29: =IF(COUNT(K29:N29)=4,SUM(K29:N29)-MIN(K29:N29),SUM(K29:N29)) -> 0 | S29: =P29+Q29+R29 -> 0 | T29: =IF(S29=0,0,RANK(S29,$S$7:$S$39)) -> 0 | Z29: =IF(COUNT(U29:X29)=4,SUM(U29:X29)-MIN(U29:X29),SUM(U29:X29)) -> 0 | AC29: =Z29+AA29+AB29 -> 0 | AD29: =IF(AC29=0,0,RANK(AC29,$AC$7:$AC$39)) -> 0
H30: 0 | I30: 0 | J30: 00:10:00 | P30: 0 | S30: 0 | T30: 0 | Z30: 0 | AC30: 0 | AD30: 0
H31: 0 | I31: 0 | J31: 00:10:00 | P31: 0 | S31: 0 | T31: 0 | Z31: 0 | AC31: 0 | AD31: 0
H32: 0 | I32: 0 | J32: 00:10:00 | P32: 0 | S32: 0 | T32: 0 | Z32: 0 | AC32: 0 | AD32: 0
H33: 0 | I33: 0 | J33: 00:10:00 | P33: 0 | S33: 0 | T33: 0 | Z33: 0 | AC33: 0 | AD33: 0
H34: 0 | I34: 0 | J34: 00:10:00 | P34: 0 | S34: 0 | T34: 0 | Z34: 0 | AC34: 0 | AD34: 0
H35: 0 | I35: 0 | J35: 00:10:00 | P35: 0 | S35: 0 | T35: 0 | Z35: 0 | AC35: 0 | AD35: 0
H36: 0 | I36: 0 | J36: 00:10:00 | P36: 0 | S36: 0 | T36: 0 | Z36: 0 | AC36: 0 | AD36: 0
H37: 0 | I37: 0 | J37: 00:10:00 | P37: 0 | S37: 0 | T37: 0 | Z37: 0 | AC37: 0 | AD37: 0
H38: 0 | I38: 0 | J38: 00:10:00 | P38: 0 | S38: 0 | T38: 0 | Z38: 0 | AC38: 0 | AD38: 0
H39: 0 | I39: 0 | J39: 00:10:00 | P39: 0 | S39: 0 | T39: 0 | Z39: 0 | AC39: 0 | AD39: 0
H40: 0 | I40: =IF(H40=0,0,RANK(H40,$H$7:$H$20)) -> 0
H41: 0 | I41: 0
H42: 0 | I42: 0
H43: 0 | I43: 0
H44: 0 | I44: 0
H45: 0 | I45: 0
H46: 0 | I46: 0

Sheet D1516
C5: Gul ledertrøye | K5: Blå klatretrøye | U5: Grønn spurttrøye
A6: Navn | B6: Klubb | C6: Løp 1 | D6: Løp 2 | E6: Løp 3 | F6: Løp 4 | G6: Løp 5 | H6: Sammenlagt Gul | I6: Rangering | J6: Starttid Finale | K6: Løp 1 | L6: Løp 2 | M6: Løp 3 | N6: Løp 4 | O6: Løp 5 | P6: Sammenlagt Blå | Q6: Finale (1) | R6: Finale (2) | S6: Sluttsum | T6: Rangering | U6: Løp 1 | V6: Løp 2 | W6: Løp 3 | X6: Løp 4 | Y6: Løp 5 | Z6: Sammenlagt Grønn | AA6: Finale (1) | AB6: Finale (M) | AC6: Sluttsum | AD6: Rangering
A7: Signe Bredholt Jørgensen | B7: Sandefjord OK | C7: 100 | D7: 60 | E7: 80 | G7: 200 | H7: =SUM(C7:G7) -> 440 | I7: =IF(H7=0,0,RANK(H7,$H$7:$H$39)) -> 1 | J7: =IF(COUNTA(C7:G7)>=2,((H$7-H7)*2/(24*3600)),(600/(24*3600))) -> 00:00:00 | K7: 100 | L7: 60 | M7: 100 | P7: =IF(COUNT(K7:O7)>2,LARGE(K7:O7,1)+LARGE(K7:O7,2)+LARGE(K7:O7,3),SUM(K7:O7)) -> 260 | Q7: 200 | S7: =P7+Q7+R7 -> 460 | T7: =IF(S7=0,0,RANK(S7,$S$7:$S$39)) -> 1 | U7: 80 | V7: 80 | W7: 50 | Z7: =IF(COUNT(U7:Y7)>2,LARGE(U7:Y7,1)+LARGE(U7:Y7,2)+LARGE(U7:Y7,3),SUM(U7:Y7)) -> 210 | AA7: 90 | AC7: =Z7+AB7+AA7 -> 300 | AD7: =IF(AC7=0,0,RANK(AC7,$AC$7:$AC$39)) -> 4
A8: Maria Prestbøen | B8: Sandefjord OK | C8: 80 | E8: 60 | G8: 160 | H8: =SUM(C8:G8) -> 300 | I8: 3 | J8: 00:04:40 | K8: 60 | M8: 80 | P8: 140 | Q8: 160 | S8: 300 | T8: 3 | U8: 100 | W8: 80 | Z8: 180 | AA8: 70 | AC8: 250 | AD8: 5
A9: Hanne Vassend | B9: Porsgrunn OL | D9: 80 | E9: 100 | F9: 100 | G9: 120 | H9: 400 | I9: 2 | J9: 00:01:20 | K9: 80 | L9: 80 | N9: 100 | P9: 260 | Q9: 120 | S9: 380 | T9: 2 | U9: 60 | V9: 100 | X9: 80 | Z9: 240 | AA9: 120 | AC9: 360 | AD9: 2
A10: Hanna Nysæter | B10: Skien OK | C10: 50 | D10: 50 | F10: 80 | G10: 80 | H10: 260 | I10: 4 | J10: 00:06:00 | K10: 50 | L10: 50 | N10: 80 | P10: 180 | Q10: 100 | S10: 280 | T10: 4 | U10: 30 | V10: 45 | X10: 100 | Z10: 175 | AA10: 160 | AC10: 335 | AD10: 3
A11: Ella Arentz Hagen | B11: Sandefjord OK | C11: 45 | D11: 100 | G11: 100 | H11: 245 | I11: 5 | J11: 00:06:30 | K11: 45 | L11: 100 | P11: 145 | Q11: 90 | S11: 235 | T11: 5 | U11: 60 | V11: 50 | Z11: 110 | AA11: 80 | AC11: 190 | AD11: 6
A12: Anna Meen | B12: Porsgrunn OL | C12: 40 | E12: 50 | F12: 60 | G12: 70 | H12: 220 | I12: 6 | J12: 00:07:20 | L12: 45 | M12: 50 | N12: 60 | P12: 155 | Q12: 80 | S12: 235 | T12: 5 | U12: 40 | W12: 100 | X12: 80 | Z12: 220 | AA12: 200 | AC12: 420 | AD12: 1
A13: Camilla L. Rosenvold | B13: Porsgrunn OL | C13: 35 | D13: 45 | H13: 80 | I13: 8 | J13: 00:12:00 | K13: 35 | L13: 40 | P13: 75 | S13: 75 | T13: 8 | U13: 60 | V13: 60 | Z13: 120 | AC13: 120 | AD13: 7
A14: Ingrid G. Mehammer | B14: Porsgrunn OL | C14: 30 | H14: 30 | I14: 10 | J14: 00:10:00 | K14: 30 | P14: 30 | S14: 30 | T14: 10 | U14: 35 | Z14: 35 | AC14: 35 | AD14: 9
A15: Mona E. S. Kierulf | B15: Larvik OK | C15: 26 | F15: 10 | H15: 36 | I15: 9 | J15: 00:13:28 | K15: 26 | N15: 50 | P15: 76 | S15: 76 | T15: 7 | U15: 26 | Z15: 26 | AC15: 26 | AD15: 10
A16: Andrine Harriet Fremstad | B16: Larvik OK | G16: 90 | H16: 90 | I16: =IF(H16=0,0,RANK(H16,$H$7:$H$39)) -> 7 | J16: =IF(COUNTA(C16:F16)>=2,((H$7-H16)*2/(24*3600)),(600/(24*3600))) -> 00:10:00 | P16: =IF(COUNT(K16:N16)=4,SUM(K16:N16)-MIN(K16:N16),SUM(K16:N16)) -> 0 | Q16: 70 | S16: =P16+Q16+R16 -> 70 | T16: =IF(S16=0,0,RANK(S16,$S$7:$S$39)) -> 9 | Z16: =IF(COUNT(U16:X16)=4,SUM(U16:X16)-MIN(U16:X16),SUM(U16:X16)) -> 0 | AA16: 100 | AC16: =Z16+AA16+AB16 -> 100 | AD16: =IF(AC16=0,0,RANK(AC16,$AC$7:$AC$39)) -> 8
H17: 0 | I17: 0 | J17: 00:10:00 | P17: 0 | S17: 0 | T17: 0 | Z17: 0 | AC17: 0 | AD17: 0
H18: 0 | I18: 0 | J18: 00:10:00 | P18: 0 | S18: 0 | T18: 0 | Z18: 0 | AC18: 0 | AD18: 0
H19: 0 | I19: 0 | J19: 00:10:00 | P19: 0 | S19: 0 | T19: 0 | Z19: 0 | AC19: 0 | AD19: 0
H20: 0 | I20: 0 | J20: 00:10:00 | P20: 0 | S20: 0 | T20: 0 | Z20: 0 | AC20: 0 | AD20: 0
H21: 0 | I21: 0 | J21: 00:10:00 | P21: 0 | S21: 0 | T21: 0 | Z21: 0 | AC21: 0 | AD21: 0
H22: 0 | I22: 0 | J22: 00:10:00 | P22: 0 | S22: 0 | T22: 0 | Z22: 0 | AC22: 0 | AD22: 0
H23: 0 | I23: 0 | J23: 00:10:00 | P23: 0 | S23: 0 | T23: 0 | Z23: 0 | AC23: 0 | AD23: 0
H24: 0 | I24: 0 | J24: 00:10:00 | P24: 0 | S24: 0 | T24: 0 | Z24: 0 | AC24: 0 | AD24: 0
H25: 0 | I25: 0 | J25: 00:10:00 | P25: 0 | S25: 0 | T25: 0 | Z25: 0 | AC25: 0 | AD25: 0
H26: 0 | I26: 0 | J26: 00:10:00 | P26: 0 | S26: 0 | T26: 0 | Z26: 0 | AC26: 0 | AD26: 0
H27: 0 | I27: 0 | J27: 00:10:00 | P27: 0 | S27: 0 | T27: 0 | Z27: 0 | AC27: 0 | AD27: 0
H28: 0 | I28: 0 | J28: 00:10:00 | P28: 0 | S28: 0 | T28: 0 | Z28: 0 | AC28: 0 | AD28: 0
H29: 0 | I29: 0 | J29: 00:10:00 | P29: 0 | S29: 0 | T29: 0 | Z29: 0 | AC29: 0 | AD29: 0
H30: 0 | I30: 0 | J30: 00:10:00 | P30: 0 | S30: 0 | T30: 0 | Z30: 0 | AC30: 0 | AD30: 0
H31: 0 | I31: 0 | J31: 00:10:00 | P31: 0 | S31: 0 | T31: 0 | Z31: 0 | AC31: 0 | AD31: 0
H32: 0 | I32: 0 | J32: 00:10:00 | P32: 0 | S32: 0 | T32: 0 | Z32: 0 | AC32: 0 | AD32: 0
H33: 0 | I33: 0 | J33: 00:10:00 | P33: 0 | S33: 0 | T33: 0 | Z33: 0 | AC33: 0 | AD33: 0
H34: 0 | I34: 0 | J34: 00:10:00 | P34: 0 | S34: 0 | T34: 0 | Z34: 0 | AC34: 0 | AD34: 0
H35: 0 | I35: 0 | J35: 00:10:00 | P35: 0 | S35: 0 | T35: 0 | Z35: 0 | AC35: 0 | AD35: 0
H36: 0 | I36: 0 | J36: 00:10:00 | P36: 0 | S36: 0 | T36: 0 | Z36: 0 | AC36: 0 | AD36: 0
H37: 0 | I37: 0 | J37: 00:10:00 | P37: 0 | S37: 0 | T37: 0 | Z37: 0 | AC37: 0 | AD37: 0
H38: 0 | I38: 0 | J38: 00:10:00 | P38: 0 | S38: 0 | T38: 0 | Z38: 0 | AC38: 0 | AD38: 0
H39: 0 | I39: 0 | J39: 00:10:00 | P39: 0 | S39: 0 | T39: 0 | Z39: 0 | AC39: 0 | AD39: 0
H40: 0 | I40: =IF(H40=0,0,RANK(H40,$H$7:$H$20)) -> 0
H41: 0 | I41: 0
H42: 0 | I42: 0
H43: 0 | I43: 0
H44: 0 | I44: 0
H45: 0 | I45: 0
H46: 0 | I46: 0

Sheet H1516
C5: Gul ledertrøye | K5: Blå klatretrøye | U5: Grønn spurttrøye
A6: Navn | B6: Klubb | C6: Løp 1 | D6: Løp 2 | E6: Løp 3 | F6: Løp 4 | G6: Løp 5 | H6: Sammenlagt Gul | I6: Rangering | J6: Starttid Finale | K6: Løp 1 | L6: Løp 2 | M6: Løp 3 | N6: Løp 4 | O6: Løp 5 | P6: Sammenlagt Blå | Q6: Finale (1) | R6: Finale (2) | S6: Sluttsum | T6: Rangering | U6: Løp 1 | V6: Løp 2 | W6: Løp 3 | X6: Løp 4 | Y6: Løp 5 | Z6: Sammenlagt Grønn | AA6: Finale (1) | AB6: Finale (M) | AC6: Sluttsum | AD6: Rangering
A7: Sindre R Holt | B7: Hedrum OK | C7: 100 | D7: 100 | E7: 100 | G7: 200 | H7: =SUM(C7:G7) -> 500 | I7: =IF(H7=0,0,RANK(H7,$H$7:$H$39)) -> 1 | J7: =IF(COUNTA(C7:F7)>=2,((H$7-H7)*2/(24*3600)),(600/(24*3600))) -> 00:00:00 | K7: 100 | L7: 100 | M7: 100 | P7: =IF(COUNT(K7:O7)>2,LARGE(K7:O7,1)+LARGE(K7:O7,2)+LARGE(K7:O7,3),SUM(K7:O7)) -> 300 | Q7: 200 | S7: =P7+Q7+R7 -> 500 | T7: =IF(S7=0,0,RANK(S7,$S$7:$S$39)) -> 1 | U7: 50 | V7: 30 | W7: 50 | Z7: 26 | AA7: 90 | AC7: =Z7+AA7+AB7 -> 116 | AD7: =IF(AC7=0,0,RANK(AC7,$AC$7:$AC$39)) -> 7
A8: Audun Melby Jacobsen | B8: Lardal OK | C8: 80 | D8: 45 | F8: 35 | H8: =SUM(C8:G8) -> 160 | I8: 7 | J8: 00:11:20 | K8: 80 | L8: 26 | N8: 50 | P8: 156 | S8: 156 | T8: 8 | U8: 80 | V8: 80 | X8: 80 | Z8: =IF(COUNT(U8:Y8)>2,LARGE(U8:Y8,1)+LARGE(U8:Y8,2)+LARGE(U8:Y8,3),SUM(U8:Y8)) -> 240 | AC8: 240 | AD8: 6
A9: Håkon Kornmo | B9: Porsgrunn OL | C9: 60 | D9: 35 | E9: 60 | G9: 160 | H9: 315 | I9: 3 | J9: 00:06:10 | K9: 35 | L9: 50 | M9: 50 | P9: 135 | Q9: 100 | S9: 235 | T9: 4 | U9: 40 | V9: 60 | W9: 40 | Z9: =IF(COUNT(U9:Y9)>2,LARGE(U9:Y9,1)+LARGE(U9:Y9,2)+LARGE(U9:Y9,3),SUM(U9:Y9)) -> 140 | AA9: 120 | AC9: 260 | AD9: 5
A10: Alexander Repstad Stormyr | B10: IL Hauken | C10: 50 | D10: 50 | F10: 60 | G10: 80 | H10: 240 | I10: 4 | J10: 00:08:40 | K10: 30 | L10: 45 | N10: 80 | P10: 155 | Q10: 70 | S10: 225 | T10: 5 | U10: 80 | V10: 40 | X10: 80 | Z10: =IF(COUNT(U10:Y10)>2,LARGE(U10:Y10,1)+LARGE(U10:Y10,2)+LARGE(U10:Y10,3),SUM(U10:Y10)) -> 200 | AA10: 200 | AC10: 400 | AD10: 2
A11: Skjalg Nysæter | B11: Skien OK | D11: 80 | E11: 80 | F11: 100 | G11: 120 | H11: 380 | I11: 2 | J11: 00:04:00 | L11: 60 | M11: 60 | N11: 60 | P11: 180 | Q11: 120 | S11: 300 | T11: 3 | V11: 50 | W11: 60 | X11: 45 | Z11: =IF(COUNT(U11:Y11)>2,LARGE(U11:Y11,1)+LARGE(U11:Y11,2)+LARGE(U11:Y11,3),SUM(U11:Y11)) -> 155 | AA11: 120 | AC11: 275 | AD11: 4
A12: Rasmus Mathiesen | B12: Porsgrunn OL | C12: 40 | E12: 50 | F12: 50 | G12: 100 | H12: 240 | I12: 4 | J12: 00:08:40 | L12: 80 | M12: 80 | N12: 100 | P12: 260 | Q12: 200 | S12: 460 | T12: 2 | V12: 45 | W12: 45 | X12: 30 | Z12: 22 | AA12: 80 | AC12: 102 | AD12: 8
A13: Hermund Ulvensøen | B13: OTO | C13: 35 | H13: 35 | I13: 11 | J13: 00:10:00 | K13: 45 | P13: 45 | S13: 45 | T13: 10 | U13: 30 | Z13: =IF(COUNT(U13:Y13)>2,LARGE(U13:Y13,1)+LARGE(U13:Y13,2)+LARGE(U13:Y13,3),SUM(U13:Y13)) -> 30 | AC13: 30 | AD13: 11
A14: Even Andre Thorbjørnsen | B14: Notodden OL | C14: 30 | E14: 40 | F14: 45 | G14: 20 | H14: 135 | I14: 8 | J14: 00:12:10 | K14: 60 | M14: 40 | N14: 40 | P14: 140 | Q14: 80 | S14: 220 | T14: 6 | U14: 100 | V14: 100 | W14: 80 | Z14: =IF(COUNT(U14:Y14)>2,LARGE(U14:Y14,1)+LARGE(U14:Y14,2)+LARGE(U14:Y14,3),SUM(U14:Y14)) -> 280 | AA14: 200 | AC14: 480 | AD14: 1
A15: Trym B Island | B15: OTO | D15: 60 | E15: 45 | F15: 40 | G15: 20 | H15: 165 | I15: 6 | J15: 00:11:10 | L15: 40 | M15: 45 | N15: 45 | P15: 130 | Q15: 90 | S15: 220 | T15: 6 | V15: 40 | W15: 100 | X15: 100 | Z15: =IF(COUNT(U15:Y15)>2,LARGE(U15:Y15,1)+LARGE(U15:Y15,2)+LARGE(U15:Y15,3),SUM(U15:Y15)) -> 240 | AA15: 70 | AC15: 310 | AD15: 3
A16: Georg Andresen | B16: Skien OK | D16: 26 | F16: 30 | H16: 56 | I16: 10 | J16: 00:14:48 | L16: 30 | N16: 30 | P16: 60 | S16: 60 | T16: 9 | V16: 26 | X16: 35 | Z16: 35 | AC16: 35 | AD16: 10
A17: Vegard Haugen | B17: Porsgrunn OL | D17: 10 | H17: 10 | I17: =IF(H17=0,0,RANK(H17,$H$7:$H$39)) -> 12 | J17: =IF(COUNTA(C17:F17)>=2,((H$7-H17)*2/(24*3600)),(600/(24*3600))) -> 00:10:00 | M17: 10 | P17: =IF(COUNT(K17:O17)>2,LARGE(K17:O17,1)+LARGE(K17:O17,2)+LARGE(K17:O17,3),SUM(K17:O17)) -> 10 | S17: =P17+Q17+R17 -> 10 | T17: =IF(S17=0,0,RANK(S17,$S$7:$S$39)) -> 12 | W17: 10 | Z17: =IF(COUNT(U17:Y17)>2,LARGE(U17:Y17,1)+LARGE(U17:Y17,2)+LARGE(U17:Y17,3),SUM(U17:Y17)) -> 10 | AC17: =Z17+AA17+AB17 -> 10 | AD17: =IF(AC17=0,0,RANK(AC17,$AC$7:$AC$39)) -> 12
A18: Olav Aasmundstveit Hoff | B18: OTO | F18: 80 | H18: 80 | I18: 9 | J18: 00:10:00 | N18: 35 | P18: 35 | S18: 35 | T18: 11 | X18: 40 | Z18: 40 | AC18: 40 | AD18: 9
H19: 0 | I19: =IF(H19=0,0,RANK(H19,$H$7:$H$39)) -> 0 | J19: 00:10:00 | P19: =IF(COUNT(K19:N19)=4,SUM(K19:N19)-MIN(K19:N19),SUM(K19:N19)) -> 0 | S19: =P19+Q19+R19 -> 0 | T19: =IF(S19=0,0,RANK(S19,$S$7:$S$39)) -> 0 | Z19: =IF(COUNT(U19:X19)=4,SUM(U19:X19)-MIN(U19:X19),SUM(U19:X19)) -> 0 | AC19: =Z19+AA19+AB19 -> 0 | AD19: =IF(AC19=0,0,RANK(AC19,$AC$7:$AC$39)) -> 0
H20: 0 | I20: 0 | J20: 00:10:00 | P20: 0 | S20: 0 | T20: 0 | Z20: 0 | AC20: 0 | AD20: 0
H21: 0 | I21: 0 | J21: 00:10:00 | P21: 0 | S21: 0 | T21: 0 | Z21: 0 | AC21: 0 | AD21: 0
H22: 0 | I22: 0 | J22: 00:10:00 | P22: 0 | S22: 0 | T22: 0 | Z22: 0 | AC22: 0 | AD22: 0
H23: 0 | I23: 0 | J23: 00:10:00 | P23: 0 | S23: 0 | T23: 0 | Z23: 0 | AC23: 0 | AD23: 0
H24: 0 | I24: 0 | J24: 00:10:00 | P24: 0 | S24: 0 | T24: 0 | Z24: 0 | AC24: 0 | AD24: 0
H25: 0 | I25: 0 | J25: 00:10:00 | P25: 0 | S25: 0 | T25: 0 | Z25: 0 | AC25: 0 | AD25: 0
H26: 0 | I26: 0 | J26: 00:10:00 | P26: 0 | S26: 0 | T26: 0 | Z26: 0 | AC26: 0 | AD26: 0
H27: 0 | I27: 0 | J27: 00:10:00 | P27: 0 | S27: 0 | T27: 0 | Z27: 0 | AC27: 0 | AD27: 0
H28: 0 | I28: 0 | J28: 00:10:00 | P28: 0 | S28: 0 | T28: 0 | Z28: 0 | AC28: 0 | AD28: 0
H29: 0 | I29: 0 | J29: 00:10:00 | P29: 0 | S29: 0 | T29: 0 | Z29: 0 | AC29: 0 | AD29: 0
H30: 0 | I30: 0 | J30: 00:10:00 | P30: 0 | S30: 0 | T30: 0 | Z30: 0 | AC30: 0 | AD30: 0
H31: 0 | I31: 0 | J31: 00:10:00 | P31: 0 | S31: 0 | T31: 0 | Z31: 0 | AC31: 0 | AD31: 0
H32: 0 | I32: 0 | J32: 00:10:00 | P32: 0 | S32: 0 | T32: 0 | Z32: 0 | AC32: 0 | AD32: 0
H33: 0 | I33: 0 | J33: 00:10:00 | P33: 0 | S33: 0 | T33: 0 | Z33: 0 | AC33: 0 | AD33: 0
H34: 0 | I34: 0 | J34: 00:10:00 | P34: 0 | S34: 0 | T34: 0 | Z34: 0 | AC34: 0 | AD34: 0
H35: 0 | I35: 0 | J35: 00:10:00 | P35: 0 | S35: 0 | T35: 0 | Z35: 0 | AC35: 0 | AD35: 0
H36: 0 | I36: 0 | J36: 00:10:00 | P36: 0 | S36: 0 | T36: 0 | Z36: 0 | AC36: 0 | AD36: 0
H37: 0 | I37: 0 | J37: 00:10:00 | P37: 0 | S37: 0 | T37: 0 | Z37: 0 | AC37: 0 | AD37: 0
H38: 0 | I38: 0 | J38: 00:10:00 | P38: 0 | S38: 0 | T38: 0 | Z38: 0 | AC38: 0 | AD38: 0
H39: 0 | I39: 0 | J39: 00:10:00 | P39: 0 | S39: 0 | T39: 0 | Z39: 0 | AC39: 0 | AD39: 0
H40: 0 | I40: =IF(H40=0,0,RANK(H40,$H$7:$H$20)) -> 0
H41: 0 | I41: 0
H42: 0 | I42: 0
H43: 0 | I43: 0
H44: 0 | I44: 0
H45: 0 | I45: 0
H46: 0 | I46: 0
